fUSD/lending_fUSD_20240114
["ID","MTS","AMOUNT","RATE_DAILY","PERIOD"]
[311608523,1705264343355,-549.71,0.0003315,2]
[311608524,1705264343364,-500.0,0.0003315,2]
[311608525,1705264343374,-534.55,0.0003315,2]
[311608526,1705264343383,-500.0,0.0003315,2]
[311608527,1705264343392,-500.0,0.0003315,2]
[311608528,1705264343401,-511.27,0.0003315,2]
[311608529,1705264343412,-554.03,0.0003315,2]
[311608530,1705264343423,-500.0,0.0003315,2]
[311608531,1705264343433,-500.0,0.0003315,2]
[311608532,1705264343442,-662.74,0.0003315,2]
[311608533,1705264343451,-590.75,0.0003315,2]
[311608534,1705264343460,-500.0,0.0003315,2]
[311608535,1705264343469,-500.0,0.0003315,2]
[311608536,1705264343478,-500.0,0.0003315,2]
[311608537,1705264343488,-852.63,0.0003315,2]
[311608538,1705264343497,-500.0,0.0003315,2]
[311608539,1705264343506,-500.0,0.0003315,2]
[311608540,1705264343516,-500.0,0.0003315,2]
[311608541,1705264343526,-556.75,0.0003315,2]
[311608542,1705264343535,-500.0,0.0003315,2]
[311608543,1705264343545,-500.0,0.0003315,2]
[311608544,1705264343555,-500.0,0.0003315,2]
[311608545,1705264343564,-584.84,0.0003315,2]
[311608546,1705264343574,-500.0,0.0003315,2]
[311608547,1705264343584,-500.0,0.0003315,2]
[311608548,1705264343594,-955.59,0.0003315,2]
[311608549,1705264343605,-500.0,0.0003315,2]
[311608550,1705264343614,-500.0,0.0003315,2]
[311608551,1705264343623,-904.67,0.0003315,2]
[311608552,1705264343634,-500.0,0.0003315,2]
[311608553,1705264343643,-500.0,0.0003315,2]
[311608554,1705264343655,-500.0,0.0003315,2]
[311608555,1705264343664,-500.0,0.0003315,2]
[311608556,1705264343673,-508.74,0.0003315,2]
[311608557,1705264343683,-500.0,0.0003315,2]
[311608558,1705264343692,-501.92,0.0003315,2]
[311608559,1705264343701,-500.0,0.0003315,2]
[311608560,1705264343712,-502.98,0.0003315,2]
[311608561,1705264343722,-500.0,0.0003315,2]
[311608562,1705264343731,-549.05,0.0003315,2]
[311608563,1705264343741,-264.76589974,0.0003315,2]
[311608564,1705264343752,-768.43,0.0003315,2]
[311608565,1705264343762,-500.0,0.0003315,2]
[311608566,1705264343772,-733.75,0.0003315,2]
[311608567,1705264343782,-500.0,0.0003315,2]
[311608568,1705264343793,-1482.34,0.0003315,2]
[311608569,1705264343803,-987.24,0.0003315,2]
[311608570,1705264343813,-500.0,0.0003315,2]
[311608571,1705264343822,-500.0,0.0003315,2]
[311608572,1705264343831,-500.0,0.0003315,2]
[311608573,1705264343840,-500.0,0.0003315,2]
[311608574,1705264343849,-500.0,0.0003315,2]
[311608575,1705264343858,-522.06,0.0003315,2]
[311608576,1705264343868,-500.0,0.0003315,2]
[311608577,1705264343877,-500.0,0.0003315,2]
[311608578,1705264343886,-500.0,0.0003315,2]
[311608579,1705264343895,-500.0,0.0003315,2]
[311608580,1705264343905,-902.15,0.0003315,2]
[311608581,1705264343914,-500.0,0.0003315,2]
[311608582,1705264343924,-500.0,0.0003315,2]
[311608583,1705264343934,-633.15,0.0003315,2]
[311608584,1705264343945,-500.0,0.0003315,2]
[311608585,1705264343954,-733.43,0.0003315,2]
[311608586,1705264343963,-681.94,0.0003315,2]
[311608587,1705264343973,-500.0,0.0003315,2]
[311608588,1705264343982,-500.0,0.0003315,2]
[311608589,1705264343992,-500.0,0.0003315,2]
[311608590,1705264344001,-861.38,0.0003315,2]
[311608591,1705264344010,-607.46,0.0003315,2]
[311608592,1705264344019,-871.23,0.0003315,2]
[311608593,1705264344028,-540.76,0.0003315,2]
[311608594,1705264344037,-731.62,0.0003315,2]
[311608595,1705264344046,-500.0,0.0003315,2]
[311608596,1705264344055,-500.0,0.0003315,2]
[311608597,1705264344065,-500.0,0.0003315,2]
[311608598,1705264344074,-500.0,0.0003315,2]
[311608599,1705264344083,-500.0,0.0003315,2]
[311608600,1705264344092,-573.03,0.0003315,2]
[311608601,1705264344101,-500.0,0.0003315,2]
[311608602,1705264344111,-541.18,0.0003315,2]
[311608603,1705264344120,-1043.04,0.0003315,2]
[311608604,1705264344129,-500.0,0.0003315,2]
[311608605,1705264344138,-524.14,0.0003315,2]
[311608606,1705264344148,-720.76,0.0003315,2]
[311608607,1705264344157,-971.45,0.0003315,2]
[311608608,1705264344166,-1331.65,0.0003315,2]
[311608609,1705264344178,-500.0,0.0003315,2]
[311608610,1705264344188,-500.0,0.0003315,2]
[311608611,1705264344197,-887.35,0.0003315,2]
[311608612,1705264344206,-1632.65,0.0003315,2]
[311608613,1705264344216,-1287.99,0.0003315,2]
[311608614,1705264344225,-500.0,0.0003315,2]
[311608615,1705264344235,-500.0,0.0003315,2]
[311608616,1705264344244,-500.0,0.0003315,2]
[311608617,1705264344255,-500.0,0.0003315,2]
[311608618,1705264344265,-500.0,0.0003315,2]
[311608619,1705264344275,-568.32,0.0003315,2]
[311608620,1705264344285,-1075.72,0.0003315,2]
[311608621,1705264344294,-611.32,0.0003315,2]
[311608622,1705264344304,-966.98,0.0003315,2]
[311608623,1705264344314,-1190.52,0.0003315,2]
[311608624,1705264344323,-1150.22,0.0003315,2]
[311608625,1705264344333,-804.23,0.0003315,2]
[311608626,1705264344343,-372.81758204,0.0003315,2]
[311608627,1705264344352,-881.95,0.0003315,2]
[311608628,1705264344361,-604.18,0.0003315,2]
[311608629,1705264344371,-523.69,0.0003315,2]
[311608630,1705264344380,-500.0,0.0003315,2]
[311608631,1705264344389,-737.47,0.0003315,2]
[311608632,1705264344399,-500.0,0.0003315,2]
[311608633,1705264344409,-816.74,0.0003315,2]
[311608634,1705264344418,-500.0,0.0003315,2]
[311608635,1705264344427,-1018.42,0.0003315,2]
[311608636,1705264344436,-691.77,0.0003315,2]
[311608637,1705264344445,-500.0,0.0003315,2]
[311608638,1705264344454,-532.86,0.0003315,2]
[311608639,1705264344464,-500.0,0.0003315,2]
[311608640,1705264344473,-500.0,0.0003315,2]
[311608641,1705264344483,-348.66,0.0003315,2]
[311608642,1705264344492,-500.0,0.0003315,2]
[311608643,1705264344502,-500.0,0.0003315,2]
[311608644,1705264344511,-624.45,0.0003315,2]
[311608645,1705264344521,-592.67,0.0003315,2]
[311608646,1705264344531,-500.0,0.0003315,2]
[311608647,1705264344540,-840.8,0.0003315,2]
[311608648,1705264344550,-901.33,0.0003315,2]
[311608649,1705264344559,-983.46,0.0003315,2]
[311608650,1705264344568,-1035.43,0.0003315,2]
[311608651,1705264344577,-500.0,0.0003315,2]
[311608652,1705264344586,-705.45,0.0003315,2]
[311608653,1705264344596,-511.79,0.0003315,2]
[311608654,1705264344605,-531.03,0.0003315,2]
[311608655,1705264344614,-500.0,0.0003315,2]
[311608656,1705264344623,-500.0,0.0003315,2]
[311608657,1705264344633,-583.5,0.0003315,2]
[311608658,1705264344642,-500.0,0.0003315,2]
[311608659,1705264344651,-652.55,0.0003315,2]
[311608660,1705264344661,-500.0,0.0003315,2]
[311608661,1705264344670,-519.09,0.0003315,2]
[311608662,1705264344680,-500.0,0.0003315,2]
[311608663,1705264344690,-603.94,0.0003315,2]
[311608664,1705264344699,-782.01,0.0003315,2]
[311608665,1705264344709,-919.27,0.0003315,2]
[311608666,1705264344718,-655.09,0.0003315,2]
[311608667,1705264344727,-848.01,0.0003315,2]
[311608668,1705264344737,-423.20981052,0.0003315,2]
[311608669,1705264344746,-500.0,0.0003315,2]
[311608670,1705264344755,-563.58451955,0.0003315,2]
[311608671,1705264344765,-512.56,0.0003315,2]
[311608672,1705264344778,-912.72,0.0003315,2]
[311608673,1705264344788,-773.77,0.0003315,2]
[311608674,1705264344799,-932.74,0.0003315,2]
[311608675,1705264344808,-672.78,0.0003315,2]
[311608676,1705264344818,-500.0,0.0003315,2]
[311608677,1705264344827,-675.44,0.0003315,2]
[311608678,1705264344837,-592.65,0.0003315,2]
[311608679,1705264344847,-812.07,0.0003315,2]
[311608680,1705264344857,-500.0,0.0003315,2]
[311608681,1705264344868,-623.53,0.0003315,2]
[311608682,1705264344879,-500.0,0.0003315,2]
[311608683,1705264344889,-556.32761104,0.0003315,2]
[311608684,1705264344899,-584.39,0.0003315,2]
[311608685,1705264344911,-652.39,0.0003315,2]
[311608686,1705264344920,-901.97,0.0003315,2]
[311608687,1705264344931,-500.0,0.0003315,2]
[311608688,1705264344941,-500.0,0.0003315,2]
[311608689,1705264344951,-1030.54,0.0003315,2]
[311608690,1705264344961,-1156.11,0.0003315,3]
[311608691,1705264344971,-1012.56,0.0003315,2]
[311608692,1705264344981,-763.69,0.0003315,2]
[311608693,1705264344990,-602.82,0.0003315,2]
[311608694,1705264345000,-500.0,0.0003315,2]
[311608695,1705264345010,-500.0,0.0003315,2]
[311608696,1705264345020,-525.95,0.0003315,2]
[311608697,1705264345029,-500.0,0.0003315,2]
[311608698,1705264345039,-500.0,0.0003315,2]
[311608699,1705264345050,-500.0,0.0003315,2]
[311608700,1705264345060,-507.67,0.0003315,2]
[311608701,1705264345070,-636.62,0.0003315,2]
[311608702,1705264345080,-207.23020103,0.0003315,2]
[311608703,1705264345090,-513.81,0.0003315,2]
[311608704,1705264345100,-902.91,0.0003315,2]
[311608705,1705264345109,-767.34,0.0003315,2]
[311608706,1705264345119,-1333.47,0.0003315,2]
[311608707,1705264345129,-500.0,0.0003315,2]
[311608708,1705264345138,-803.03,0.0003315,2]
[311608709,1705264345148,-500.0,0.0003315,2]
[311608710,1705264345158,-500.0,0.0003315,2]
[311608711,1705264345169,-638.06,0.0003315,2]
[311608712,1705264345180,-190.76195304,0.0003315,2]
[311608713,1705264345190,-536.45,0.0003315,2]
[311608714,1705264345200,-500.0,0.0003315,2]
[311608715,1705264345211,-598.26,0.0003315,2]
[311608716,1705264345221,-500.0,0.0003315,2]
[311608717,1705264345232,-661.41,0.0003315,2]
[311608718,1705264345241,-1303.11,0.0003315,2]
[311608719,1705264345251,-776.96,0.0003315,2]
[311608720,1705264345260,-500.0,0.0003315,2]
[311608721,1705264345270,-500.0,0.0003315,2]
[311608722,1705264345280,-619.53,0.0003315,2]
[311608723,1705264345290,-583.54,0.0003315,2]
[311608724,1705264345300,-1031.14,0.0003315,2]
[311608725,1705264345310,-668.9,0.0003315,2]
[311608726,1705264345320,-1069.22,0.0003315,2]
[311608727,1705264345329,-500.0,0.0003315,2]
[311608728,1705264345339,-522.71,0.0003315,2]
[311608729,1705264345349,-500.0,0.0003315,2]
[311608730,1705264345358,-500.0,0.0003315,2]
[311608731,1705264345368,-500.0,0.0003315,2]
[311608732,1705264345378,-500.0,0.0003315,2]
[311608733,1705264345388,-623.93,0.0003315,2]
[311608734,1705264345398,-524.27,0.0003315,2]
[311608735,1705264345408,-1298.17,0.0003315,2]
[311608736,1705264345418,-500.0,0.0003315,2]
[311608737,1705264345428,-705.28,0.0003315,2]
[311608738,1705264345439,-553.43,0.0003315,2]
[311608739,1705264345449,-500.0,0.0003315,2]
[311608740,1705264345459,-841.22,0.0003315,2]
[311608741,1705264345469,-779.76,0.0003315,2]
[311608742,1705264345479,-594.72,0.0003315,2]
[311608743,1705264345489,-503.72418774,0.0003315,2]
[311608744,1705264345499,-754.6,0.0003315,2]
[311608745,1705264345509,-971.46,0.0003315,2]
[311608746,1705264345519,-663.62,0.0003315,2]
[311608747,1705264345529,-500.0,0.0003315,2]
[311608748,1705264345539,-500.0,0.0003315,2]
[311608749,1705264345548,-500.0,0.0003315,2]
[311608750,1705264345558,-500.0,0.0003315,2]
[311608751,1705264345567,-640.22,0.0003315,2]
[311608752,1705264345577,-880.9,0.0003315,2]
[311608753,1705264345587,-500.0,0.0003315,2]
[311608754,1705264345597,-668.12,0.0003315,2]
[311608755,1705264345607,-1002.82,0.0003315,2]
[311608756,1705264345618,-604.35,0.0003315,2]
[311608757,1705264345629,-690.19,0.0003315,2]
[311608758,1705264345639,-299.2751551,0.0003315,2]
[311608759,1705264345650,-500.0,0.0003315,2]
[311608760,1705264345660,-688.38,0.0003315,2]
[311608761,1705264345670,-619.28,0.0003315,2]
[311608762,1705264345679,-529.02,0.0003315,2]
[311608763,1705264345690,-779.6,0.0003315,2]
[311608764,1705264345700,-500.0,0.0003315,2]
[311608765,1705264345710,-1160.15,0.0003315,2]
[311608766,1705264345721,-1042.53,0.0003315,2]
[311608767,1705264345731,-500.0,0.0003315,2]
[311608768,1705264345741,-500.0,0.0003315,2]
[311608769,1705264345752,-500.0,0.0003315,2]
[311608770,1705264345761,-790.69,0.0003315,2]
[311608771,1705264345771,-684.1,0.0003315,2]
[311608772,1705264345782,-647.62,0.0003315,2]
[311608773,1705264345793,-500.0,0.0003315,2]
[311608774,1705264345806,-500.0,0.0003315,2]
[311608775,1705264345817,-500.0,0.0003315,2]
[311608776,1705264345828,-571.94,0.0003315,2]
[311608777,1705264345839,-3167.32,0.0003315,2]
[311608778,1705264345849,-567.97,0.0003315,2]
[311608779,1705264345860,-522.59,0.0003315,2]
[311608780,1705264345870,-500.0,0.0003315,2]
[311608781,1705264345880,-500.0,0.0003315,2]
[311608782,1705264345891,-774.9,0.0003315,2]
[311608783,1705264345901,-500.0,0.0003315,2]
[311608784,1705264345911,-500.0,0.0003315,2]
[311608785,1705264345922,-1088.65,0.0003315,2]
[311608786,1705264345932,-884.91,0.0003315,2]
[311608787,1705264345942,-1154.9,0.0003315,2]
[311608788,1705264345952,-537.49,0.0003315,2]
[311608789,1705264345963,-500.0,0.0003315,2]
[311608790,1705264346089,-766.25,0.0003315,2]
[311608791,1705264346226,-500.0,0.0003315,2]
[311608792,1705264346236,-500.0,0.0003315,2]
[311608793,1705264346246,-500.0,0.0003315,2]
[311608794,1705264346257,-500.0,0.0003315,2]
[311608795,1705264346267,-739.11,0.0003315,2]
[311608796,1705264346277,-500.0,0.0003315,2]
[311608797,1705264346287,-2842.79,0.0003315,2]
[311608798,1705264346297,-703.48,0.0003315,2]
[311608799,1705264346307,-500.0,0.0003315,2]
[311608800,1705264346316,-500.0,0.0003315,2]
[311608801,1705264346326,-755.21,0.0003315,2]
[311608802,1705264346336,-655.3,0.0003315,2]
[311608803,1705264346347,-500.0,0.0003315,2]
[311608804,1705264346358,-500.0,0.0003315,2]
[311608805,1705264346370,-500.0,0.0003315,2]
[311608806,1705264346380,-1021.39,0.0003315,2]
[311608807,1705264346391,-649.3,0.0003315,2]
[311608808,1705264346400,-500.0,0.0003315,2]
[311608809,1705264346412,-1175.51,0.0003315,2]
[311608810,1705264346422,-500.0,0.0003315,2]
[311608811,1705264346431,-701.34,0.0003315,2]
[311608812,1705264346441,-1477.05,0.0003315,2]
[311608813,1705264346451,-686.32,0.0003315,2]
[311608814,1705264346461,-956.76,0.0003315,2]
[311608815,1705264346471,-586.62799834,0.0003315,2]
[311608816,1705264346481,-500.0,0.0003315,2]
[311608817,1705264346491,-500.0,0.0003315,2]
[311608818,1705264346500,-601.17,0.0003315,2]
[311608819,1705264346511,-1476.27,0.0003315,2]
[311608820,1705264346521,-500.0,0.0003315,2]
[311608821,1705264346533,-1151.69,0.0003315,2]
[311608822,1705264346543,-1030.11,0.0003315,2]
[311608823,1705264346553,-815.37,0.0003315,2]
[311608824,1705264346563,-500.0,0.0003315,2]
[311608825,1705264346573,-1060.69,0.0003315,2]
[311608826,1705264346582,-500.0,0.0003315,2]
[311608827,1705264346592,-500.0,0.0003315,2]
[311608828,1705264346602,-663.4,0.0003315,2]
[311608829,1705264346611,-500.0,0.0003315,2]
[311608830,1705264346621,-1567.33,0.0003315,2]
[311608831,1705264346631,-507.53,0.0003315,2]
[311608832,1705264346641,-690.39,0.0003315,2]
[311608833,1705264346651,-780.22,0.0003315,2]
[311608834,1705264346661,-1087.14,0.0003315,2]
[311608835,1705264346671,-1031.89,0.0003315,2]
[311608836,1705264346683,-15692.02,0.0003315,2]
[311608837,1705264346694,-720.95,0.0003315,2]
[311608838,1705264346706,-968.33,0.0003315,2]
[311608839,1705264346717,-500.0,0.0003315,2]
[311608840,1705264346727,-4778.91,0.0003315,2]
[311608841,1705264346738,-4080.55,0.0003315,2]
[311608842,1705264346749,-500.0,0.0003315,2]
[311608843,1705264346759,-524.66,0.0003315,2]
[311608844,1705264346769,-1610.45,0.0003315,2]
[311608845,1705264346779,-1037.02,0.0003315,2]
[311608846,1705264346789,-500.0,0.0003315,2]
[311608847,1705264346799,-500.0,0.0003315,2]
[311608848,1705264346810,-512.48,0.0003315,2]
[311608849,1705264346820,-753.69,0.0003315,2]
[311608850,1705264346829,-819.18,0.0003315,2]
[311608851,1705264346838,-658.91,0.0003315,2]
[311608852,1705264346848,-500.0,0.0003315,2]
[311608853,1705264346858,-922.23,0.0003315,2]
[311608854,1705264346868,-1259.43,0.0003315,2]
[311608855,1705264346877,-908.29,0.0003315,2]
[311608856,1705264346887,-500.0,0.0003315,2]
[311608857,1705264346897,-500.0,0.0003315,2]
[311608858,1705264346906,-500.0,0.0003315,2]
[311608859,1705264346917,-1934.5,0.0003315,2]
[311608860,1705264346926,-1783.71,0.0003315,2]
[311608861,1705264346936,-1552.56,0.0003315,2]
[311608862,1705264346945,-813.78,0.0003315,2]
[311608863,1705264346955,-508.7,0.0003315,2]
[311608864,1705264346964,-1672.88,0.0003315,2]
[311608865,1705264346974,-887.69,0.0003315,2]
[311608866,1705264346983,-1249.33,0.0003315,2]
[311608867,1705264346992,-1426.72,0.0003315,2]
[311608868,1705264347001,-1118.87,0.0003315,2]
[311608869,1705264347011,-5627.11,0.0003315,2]
[311608870,1705264347022,-1369.47,0.0003315,2]
[311608871,1705264347032,-575.47,0.0003315,2]
[311608872,1705264347042,-570.84,0.0003315,2]
[311608873,1705264347052,-567.98,0.0003315,2]
[311608874,1705264347061,-552.23,0.0003315,2]
[311608875,1705264347071,-599.67,0.0003315,2]
[311608876,1705264347081,-682.29,0.0003315,2]
[311608877,1705264347091,-799.56,0.0003315,2]
[311608878,1705264347101,-2554.34,0.0003315,2]
[311608879,1705264347110,-1153.92,0.0003315,2]
[311608880,1705264347119,-1798.17,0.0003315,2]
[311608881,1705264347128,-2674.9,0.0003315,2]
[311608882,1705264347139,-4747.99,0.0003315,2]
[311608883,1705264347150,-874.04,0.0003315,2]
[311608884,1705264347160,-3082.22,0.0003315,2]
[311608885,1705264347170,-500.0,0.0003315,2]
[311608886,1705264347179,-522.44,0.0003315,2]
[311608887,1705264347190,-1501.1,0.0003315,2]
[311608888,1705264347200,-953.45,0.0003315,2]
[311608889,1705264347210,-2400.47,0.0003315,2]
[311608890,1705264347219,-1591.7,0.0003315,2]
[311608891,1705264347229,-500.0,0.0003315,2]
[311608892,1705264347239,-500.0,0.0003315,2]
[311608893,1705264347253,-1195.23,0.0003315,2]
[311608894,1705264347263,-830.52,0.0003315,2]
[311608895,1705264347272,-645.86,0.0003315,2]
[311608896,1705264347282,-500.0,0.0003315,2]
[311608897,1705264347292,-500.0,0.0003315,2]
[311608898,1705264347301,-1563.61,0.0003315,2]
[311608899,1705264347310,-552.65,0.0003315,2]
[311608900,1705264347320,-1788.89,0.0003315,2]
[311608901,1705264347329,-3852.95,0.0003315,2]
[311608902,1705264347340,-800.79,0.0003315,2]
[311608903,1705264347349,-3780.57,0.0003315,2]
[311608904,1705264347360,-689.0,0.0003315,2]
[311608905,1705264347369,-1026.83,0.0003315,2]
[311608906,1705264347378,-1077.68,0.0003315,2]
[311608907,1705264347387,-543.18,0.0003315,2]
[311608908,1705264347397,-500.0,0.0003315,2]
[311608909,1705264347406,-3887.42,0.0003315,2]
[311608910,1705264347417,-8222.74,0.0003315,2]
[311608911,1705264347426,-706.36,0.0003315,2]
[311608912,1705264347436,-1212.77,0.0003315,2]
[311608913,1705264347448,-1605.08,0.0003315,2]
[311608914,1705264347458,-500.0,0.0003315,2]
[311608915,1705264347468,-3010.13,0.0003315,2]
[311608916,1705264347477,-500.0,0.0003315,2]
[311608917,1705264347486,-967.6,0.0003315,2]
[311608918,1705264347496,-3703.12,0.0003315,2]
[311608919,1705264347505,-379.68,0.0003315,2]
[311608920,1705264347514,-583.22,0.0003315,2]
[311608921,1705264347524,-30649.83,0.0003315,2]
[311608922,1705264347533,-3434.07,0.0003315,2]
[311608923,1705264347544,-500.0,0.0003315,2]
[311608924,1705264347554,-965.74,0.0003315,2]
[311608925,1705264347563,-913.46,0.0003315,2]
[311608926,1705264347573,-842.61,0.0003315,2]
[311608927,1705264347582,-1729.11,0.0003315,2]
[311608928,1705264347592,-11897.09,0.0003315,2]
[311608929,1705264347602,-6230.07,0.0003315,2]
[311608930,1705264347611,-1027.7,0.0003315,2]
[311608931,1705264347620,-1130.45,0.0003315,2]
[311608932,1705264347631,-500.0,0.0003315,2]
[311608933,1705264347641,-1353.14,0.0003315,2]
[311608934,1705264347650,-500.0,0.0003315,2]
[311608935,1705264347660,-500.0,0.0003315,5]
[311608936,1705264347670,-500.0,0.0003315,2]
[311608937,1705264347680,-3435.49,0.0003315,2]
[311608938,1705264347689,-500.0,0.0003315,2]
[311608939,1705264347699,-573.71,0.0003315,2]
[311608940,1705264347709,-2448.9,0.0003315,2]
[311608941,1705264347719,-644.33,0.0003315,2]
[311608942,1705264347729,-3036.82,0.0003315,2]
[311608943,1705264347741,-597.1,0.0003315,2]
[311608944,1705264347751,-750.17,0.0003315,2]
[311608945,1705264347761,-2478.07,0.0003315,2]
[311608946,1705264347770,-828.04,0.0003315,2]
[311608947,1705264347779,-1871.96,0.0003315,2]
[311608948,1705264347789,-801.45,0.0003315,2]
[311608949,1705264347798,-1895.33,0.0003315,2]
[311608950,1705264347809,-1560.14,0.0003315,2]
[311608951,1705264347818,-3224.85,0.0003315,2]
[311608952,1705264347828,-533.31,0.0003315,2]
[311608953,1705264347837,-500.0,0.0003315,2]
[311608954,1705264347846,-500.0,0.0003315,2]
[311608955,1705264347856,-5325.11,0.0003315,2]
[311608956,1705264347866,-949.53,0.0003315,2]
[311608957,1705264347875,-1784.8,0.0003315,2]
[311608958,1705264347885,-730.14,0.0003315,2]
[311608959,1705264347894,-1488.85,0.0003315,2]
[311608960,1705264347903,-2331.02,0.0003315,2]
[311608961,1705264347914,-787.16,0.0003315,2]
[311608962,1705264347922,-841.76,0.0003315,2]
[311608963,1705264347931,-1513.17,0.0003315,2]
[311608964,1705264347941,-524.76,0.0003315,2]
[311608965,1705264347950,-847.15,0.0003315,2]
[311608966,1705264347959,-1046.23,0.0003315,2]
[311608967,1705264347969,-1523.32,0.0003315,2]
[311608968,1705264347978,-611.14,0.0003315,2]
[311608969,1705264347987,-4188.56,0.0003315,2]
[311608970,1705264347997,-2000.73,0.0003315,2]
[311608971,1705264348006,-1059.93,0.0003315,2]
[311608972,1705264348016,-1556.83,0.0003315,2]
[311608973,1705264348025,-1572.81,0.0003315,2]
[311608974,1705264348035,-593.18,0.0003315,2]
[311608975,1705264348044,-790.76,0.0003315,2]
[311608976,1705264348054,-559.75,0.0003315,2]
[311608977,1705264348063,-722.19,0.0003315,2]
[311608978,1705264348072,-1160.27,0.0003315,2]
[311608979,1705264348082,-10911.16,0.0003315,2]
[311608980,1705264348091,-1333.04,0.0003315,2]
[311608981,1705264348101,-2072.02,0.0003315,2]
[311608982,1705264348110,-4765.57,0.0003315,2]
[311608983,1705264348120,-500.0,0.0003315,2]
[311608984,1705264348130,-711.46,0.0003315,2]
[311608985,1705264348140,-500.0,0.0003315,2]
[311608986,1705264348149,-568.95,0.0003315,2]
[311608987,1705264348158,-1038.07,0.0003315,2]
[311608988,1705264348170,-500.0,0.0003315,2]
[311608989,1705264348182,-7269.33,0.0003315,2]
[311608990,1705264348192,-6925.8,0.0003315,2]
[311608991,1705264348201,-775.66,0.0003315,2]
[311608992,1705264348210,-1868.67,0.0003315,2]
[311608993,1705264348220,-1572.91,0.0003315,2]
[311608994,1705264348230,-1049.48,0.0003315,2]
[311608995,1705264348239,-756.09,0.0003315,2]
[311608996,1705264348248,-500.0,0.0003315,2]
[311608997,1705264348258,-1179.24,0.0003315,2]
[311608998,1705264348268,-1088.94,0.0003315,2]
[311608999,1705264348277,-660.67,0.0003315,2]
[311609000,1705264348287,-1736.87,0.0003315,2]
[311609001,1705264348296,-500.0,0.0003315,2]
[311609002,1705264348306,-1917.76,0.0003315,2]
[311609003,1705264348315,-1883.84,0.0003315,2]
[311609004,1705264348325,-500.0,0.0003315,2]
[311609005,1705264348334,-463.21643162,0.0003315,2]
[311609006,1705264348343,-3549.24,0.0003315,2]
[311609007,1705264348353,-1639.07,0.0003315,2]
[311609008,1705264348362,-726.79,0.0003315,2]
[311609009,1705264348372,-500.0,0.0003315,2]
[311609010,1705264348381,-1673.99,0.0003315,2]
[311609011,1705264348391,-500.0,0.0003315,2]
[311609012,1705264348400,-3692.47,0.0003315,2]
[311609013,1705264348409,-1877.85,0.0003315,2]
[311609014,1705264348421,-19757.41,0.0003315,2]
[311609015,1705264348430,-500.0,0.0003315,2]
[311609016,1705264348439,-2271.06,0.0003315,2]
[311609017,1705264348448,-500.0,0.0003315,2]
[311609018,1705264348457,-2078.93,0.0003315,2]
[311609019,1705264348467,-766.43,0.0003315,2]
[311609020,1705264348476,-862.55,0.0003315,2]
[311609021,1705264348485,-1101.05,0.0003315,2]
[311609022,1705264348494,-1066.09,0.0003315,2]